fUSD/lending_fUSD_20250625
["ID","MTS","AMOUNT","RATE_DAILY","PERIOD"]
[367474497,1750810232273,-272.97258562,0.000199,2]
[367474498,1750810232286,-392.36741438,0.000199,2]
[367474499,1750810232296,-166.19,0.00020187,2]
[367474500,1750810232306,-300.0,0.00022403,2]
[367474501,1750810232315,-3337.0,0.00022404,2]
[367474502,1750810232325,-749.921,0.00022404,2]
[367474503,1750810232334,-1161.0,0.00022404,2]
[367474504,1750810232344,-4098.0,0.00022404,2]
[367474505,1750810232353,-3337.31882224,0.00022404,2]
[367474506,1750810232365,-1931.29449889,0.00022404,2]
[367474507,1750810232377,-739.45581812,0.00022404,2]
[367474508,1750810232533,-311.6698544,0.00022404,2]
[367474848,1750810238071,-819.26100635,0.00022404,2]
[367474850,1750810238081,-856.0,0.00022404,2]
[367474851,1750810238091,-156.0,0.00022404,2]
[367474852,1750810238101,-204.0,0.00022952,2]
[367474853,1750810238110,-214.75,0.00022966,2]
[367474854,1750810238119,-1111.0,0.00023,2]
[367474855,1750810238129,-884.708,0.00023,2]
[367474856,1750810238138,-666.0,0.00023065,2]
[367474857,1750810238146,-1000.0,0.00023107,2]
[367474858,1750810238156,-200.0,0.00023112,7]
[367474859,1750810238165,-3862.79217695,0.00023272,2]
[367474860,1750810238336,-790.5,0.00023272,2]
[367474861,1750810238504,-589.95148867,0.00023272,2]
[367475012,1750810240205,-18656.75633438,0.00023272,2]
[367475014,1750810240214,-250.0,0.00023314,2]
[367475016,1750810240225,-285.56,0.00023336,2]
[367475019,1750810240234,-162.11,0.00023396,2]
[367475021,1750810240244,-165.74,0.00023519,2]
[367475023,1750810240253,-467.83,0.00023836,2]
[367475024,1750810240263,-151.61,0.00024,2]
[367475027,1750810240272,-490.0,0.00024108,2]
[367475028,1750810240281,-490.0,0.00024108,2]
[367475030,1750810240291,-490.0,0.00024108,2]
[367475032,1750810240300,-490.0,0.00024108,2]
[367475034,1750810240310,-490.0,0.00024108,2]
[367475037,1750810240320,-490.0,0.00024108,2]
[367475038,1750810240329,-490.0,0.00024108,2]
[367475041,1750810240338,-490.0,0.00024108,2]
[367475042,1750810240348,-490.0,0.00024108,2]
[367475044,1750810240358,-490.0,0.00024108,2]
[367475046,1750810240368,-490.0,0.00024108,2]
[367475048,1750810240377,-490.0,0.00024108,2]
[367475050,1750810240387,-490.0,0.00024108,2]
[367475052,1750810240397,-490.0,0.00024108,2]
[367475054,1750810240406,-490.0,0.00024108,2]
[367475056,1750810240417,-611.98,0.00024108,2]
[367475058,1750810240426,-490.0,0.00024108,2]
[367475060,1750810240435,-254.54994998,0.00024108,2]
[367475062,1750810240444,-151.61,0.00024116,2]
[367475064,1750810240453,-617.56557863,0.00024116,2]
[367475066,1750810240462,-490.0,0.00024116,2]
[367475068,1750810240472,-490.0,0.00024116,2]
[367475070,1750810240482,-251.55762467,0.00024116,2]
[367475072,1750810240491,-490.0,0.00024116,2]
[367475075,1750810240500,-490.0,0.00024116,2]
[367475076,1750810240509,-229.47059766,0.00024116,2]
[367475079,1750810240519,-490.0,0.00024116,2]
[367475081,1750810240528,-490.0,0.00024116,2]
[367475082,1750810240537,-490.0,0.00024116,2]
[367475085,1750810240548,-490.0,0.00024116,2]
[367475087,1750810240558,-490.0,0.00024116,2]
[367475089,1750810240567,-185.78,0.00024116,2]
[367475091,1750810240576,-564.91,0.00024116,2]
[367475093,1750810240587,-159.92346369,0.00024116,2]
[367475095,1750810240598,-612.43,0.00024116,2]
[367475097,1750810240607,-490.0,0.00024116,2]
[367475099,1750810240617,-490.0,0.00024116,2]
[367475101,1750810240626,-177.19219,0.00024116,2]
[367475103,1750810240635,-10994.74426241,0.00024117,3]
[367475106,1750810240651,-400.0,0.00024117,3]
[367475108,1750810240662,-565.00527552,0.00024117,3]
[367475358,1750810243112,-459.119781,0.00022404,2]
[367475656,1750810246331,-402.880219,0.00022404,2]
[367475658,1750810246340,-203.0,0.00022952,2]
[367475660,1750810246350,-151.0,0.00024116,2]
[367475662,1750810246359,-540.25046207,0.00024117,3]
[367475664,1750810246369,-3196.06931893,0.00024126,3]
[367475679,1750810246502,-713.23054338,0.00024126,3]
[367475979,1750810511708,157.44,0.00013699,2]
[367475986,1750810756467,3667.82,0.00027397,120]
[367475987,1750810810988,226.0,0.00019,2]
[367475991,1750811204458,202.7018454,0.0002739,120]
[367475995,1750811322025,-161.035922,0.00019364,2]
[367475996,1750811322050,-26.51726749,0.00019371,2]
[367476008,1750811432215,-134.51865451,0.00019371,2]
[367476009,1750811432226,-161.035922,0.00019379,2]
[367476010,1750811432236,-315.01942252,0.000194,2]
[367476011,1750811432266,-1770.78746014,0.000194,2]
[367476012,1750811432321,-461.10491234,0.000194,2]
[367476013,1750811432331,-254.47135024,0.00019623,2]
[367476014,1750811432342,-161.035922,0.00019649,2]
[367476015,1750811432351,-598.81,0.000199,2]
[367476016,1750811432361,-161.035922,0.00020186,2]
[367476017,1750811432371,-161.035922,0.00020463,2]
[367476018,1750811432381,-157.44,0.00020548,2]
[367476019,1750811432390,-417.0,0.000211,2]
[367476020,1750811432399,-179.85661038,0.000212,2]
[367476021,1750811432409,-250.0,0.000213,2]
[367476022,1750811432419,-1453.66780061,0.000213,5]
[367476023,1750811432430,-546.33219939,0.000213,5]
[367476024,1750811432440,-204.0,0.00021598,2]
[367476025,1750811432449,-126.33717192,0.0002229,2]
[367476026,1750811432463,-539.66282808,0.0002229,2]
[367476032,1750811432666,-200.0,0.00022369,7]
[367476033,1750811432676,-1000.0,0.00022576,2]
[367476034,1750811432685,-300.0,0.00022878,2]
[367476035,1750811432694,-150.0,0.00022878,2]
[367476036,1750811432703,-1161.0,0.00022879,2]
[367476037,1750811432713,-156.0,0.00022879,2]
[367476038,1750811432722,-4098.0,0.00022879,2]
[367476039,1750811432732,-250.0,0.00022965,2]
[367476040,1750811432741,-980.568,0.00022965,2]
[367476041,1750811432750,-1634.17701201,0.00023012,2]
[367476043,1750811432761,-22265.82298799,0.00023012,2]
[367476045,1750811432771,-287.14,0.00023249,2]
[367476047,1750811432780,-421.15,0.00023836,2]
[367476049,1750811432790,-30588.14,0.00024,2]
[367476051,1750811432799,-1517.52976565,0.00024,10]
[367476053,1750811432810,-2128.6,0.00024,10]
[367476055,1750811432822,-688.06840514,0.00024,10]
[367476057,1750811432833,-3425.0999998,0.00024,10]
[367476227,1750811438211,-856.0,0.00022879,2]
[367476228,1750811438221,-177.19219,0.0002387,2]
[367476229,1750811438231,-240.70182941,0.00024,10]
[367476230,1750811438242,-151.77,0.00024,2]
[367476231,1750811438252,-29.38597927,0.00024,5]
[367476232,1750811438263,-324.060861,0.00024,5]
[367476233,1750811438275,-4646.55315973,0.00024,5]
[367476234,1750811438285,-1935.4172,0.00024009,2]
[367476235,1750811438295,-703.9247,0.00024052,2]
[367476236,1750811438304,-1000.0,0.00024052,2]
[367476237,1750811438313,-500.0,0.00024052,2]
[367476238,1750811438323,-729.94483526,0.00024061,2]
[367476239,1750811438339,-515.4242036,0.00024061,2]
[367476240,1750811438350,-907.49286114,0.00024061,2]
[367476241,1750811438360,-500.0,0.00024082,2]
[367476242,1750811438369,-174.06,0.00024098,2]
[367476243,1750811438379,-12500.0,0.000241,3]
[367476244,1750811438388,-490.0,0.00024107,2]
[367476245,1750811438398,-163.26,0.00024107,2]
[367476246,1750811438407,-6632.63140543,0.00024107,2]
[367476247,1750811438417,-10933.55573343,0.00024107,2]
[367476248,1750811438429,-325.511704,0.00024107,2]
[367476249,1750811438441,-3729.88403105,0.00024107,2]
[367476426,1750811440405,-465.75271238,0.00024008,2]
[367476428,1750811440415,-34.24728762,0.00024107,2]
[367476440,1750811440512,-3321.84236007,0.00024107,2]
[367476447,1750811440567,-21252.0,0.00024107,2]
[367476449,1750811440579,-295.506,0.00024107,2]
[367476460,1750811440677,-1950.0,0.00024107,2]
[367476467,1750811440731,-2127.3054967,0.00024107,2]
[367476480,1750811440837,-42023.48177759,0.00024107,2]
[367476739,1750811443262,-203.0,0.00021598,2]
[367476740,1750811443271,-107.79556455,0.00023298,2]
[367476741,1750811443315,-815.64243545,0.00023298,2]
[367476742,1750811443325,-311.01019851,0.00024107,2]
[367476743,1750811443334,-4450.35670186,0.00024107,2]
[367477119,1750811447187,-631.0,0.00024107,2]
[367478106,1750811499993,157.44,0.00013699,2]
[367478112,1750811638078,1007.0,0.00027397,120]
[367478116,1750811960067,151.0,0.00018964,2]
[367478117,1750811976683,151.0,0.00018999,2]
[367478122,1750812501464,853.50506485,0.00017764,2]
[367478123,1750812501789,853.50506485,0.00018031,2]
[367478124,1750812502186,853.50506485,0.00018171,2]
[367478125,1750812502514,853.50506485,0.00018482,2]
[367478126,1750812502831,853.50506485,0.00018686,2]
[367478127,1750812503136,853.50506485,0.00018921,2]
[367478128,1750812504113,-254.47135023,0.00019268,2]
[367478139,1750812552928,500.0,0.00019,2]
[367478140,1750812561644,500.0,0.00019,2]
[367478141,1750812569247,500.0,0.00019,2]
[367478143,1750812586873,509.6,0.00019,2]
[367478153,1750812631424,-538.93,0.000199,2]
[367478154,1750812631435,-254.47135023,0.00020268,2]
[367478155,1750812631444,-1200.0,0.00021201,2]
[367478156,1750812631453,-8.00904977,0.00021202,2]
[367478157,1750812631466,-291.99095023,0.00021202,2]
[367478158,1750812631634,-308.56961418,0.00021202,2]
[367478159,1750812631695,-275.43038582,0.00021202,2]
[367478160,1750812631705,-300.0,0.00021303,2]
[367478161,1750812631715,-838.5361619,0.00021366,2]
[367478162,1750812631724,-838.5361619,0.00021391,2]
[367478163,1750812631734,-157.44,0.00021404,2]
[367478164,1750812631743,-185.8076792,0.00021552,2]
[367478166,1750812631755,-18.1923208,0.00021552,2]
[367478168,1750812631766,-838.5361619,0.00021686,2]
[367478169,1750812631775,-834.75490017,0.00021788,2]
[367478170,1750812631785,-306.04,0.00021939,2]
[367478171,1750812631794,-5000.0,0.00022,2]
[367478172,1750812631804,-23900.0,0.00022043,2]
[367478174,1750812631813,-838.5361619,0.00022066,2]
[367478176,1750812631822,-838.5361619,0.00022434,2]
[367478178,1750812631831,-838.5361619,0.00022524,2]
[367478180,1750812631840,-666.0,0.0002262,2]
[367478182,1750812631853,-165.74,0.00022682,2]
[367478185,1750812631863,-1354.62,0.00022687,2]
[367478187,1750812631872,-1000.0,0.00022745,2]
[367478189,1750812631883,-306.04,0.00022762,2]
[367478191,1750812631893,-200.0,0.00022797,2]
[367478193,1750812631903,-1147.4,0.00022813,2]
[367478195,1750812631912,-558.82,0.00022816,2]
[367478198,1750812631921,-838.5361619,0.00022891,2]
[367478200,1750812631931,-295.86,0.00022936,2]
[367478202,1750812631940,-838.5361619,0.00023095,2]
[367478204,1750812631949,-250.0,0.00023212,2]
[367478206,1750812631958,-784.455,0.00023253,3]
[367478208,1750812631968,-300.0,0.00023297,2]
[367478210,1750812631977,-3323.858,0.00023298,2]
[367478212,1750812631986,-1161.0,0.00023298,2]
[367478213,1750812632000,-7139.0,0.00023298,2]
[367478215,1750812632010,-156.0,0.00023298,2]
[367478217,1750812632019,-885.0,0.00023298,2]
[367478219,1750812632028,-838.5361619,0.00023411,2]
[367478221,1750812632037,-306.04,0.00023585,2]
[367478223,1750812632047,-877.379967,0.00023633,4]
[367478225,1750812632056,-838.5361619,0.00023794,2]
[367478227,1750812632065,-419.17744116,0.000238,2]
[367478229,1750812632074,-378.89,0.00023836,2]
[367478231,1750812632083,-54156.23166804,0.0002387,2]
[367478233,1750812632092,-177.19219019,0.0002387,2]
[367478235,1750812632101,-1111.0,0.0002389,2]
[367478237,1750812632110,-1111.0,0.0002389,2]
[367478239,1750812632119,-1111.0,0.0002389,2]
[367478241,1750812632128,-1111.0,0.0002389,2]
[367478243,1750812632137,-1111.0,0.0002389,2]
[367478245,1750812632146,-1111.0,0.0002389,2]
[367478247,1750812632155,-1111.0,0.0002389,2]
[367478249,1750812632165,-1111.0,0.0002389,2]
[367478251,1750812632174,-1111.0,0.0002389,2]
[367478253,1750812632183,-1111.0,0.0002389,2]
[367478255,1750812632192,-1111.0,0.0002389,2]
[367478257,1750812632201,-1111.0,0.0002389,2]
[367478259,1750812632210,-1111.0,0.0002389,2]
[367478261,1750812632220,-1111.0,0.0002389,2]
[367478263,1750812632229,-1111.0,0.0002389,2]
[367478265,1750812632239,-1111.0,0.0002389,2]
[367478267,1750812632248,-1111.0,0.0002389,2]
[367478269,1750812632257,-1111.0,0.0002389,2]
[367478271,1750812632266,-1111.0,0.000239,2]
[367478273,1750812632275,-1111.0,0.000239,2]
[367478275,1750812632285,-1111.0,0.000239,2]
[367478277,1750812632295,-1111.0,0.000239,2]
[367478279,1750812632304,-1111.0,0.000239,2]
[367478281,1750812632313,-1111.0,0.000239,2]
[367478283,1750812632322,-1111.0,0.000239,2]
[367478285,1750812632331,-1111.0,0.000239,2]
[367478287,1750812632341,-1111.0,0.000239,2]
[367478289,1750812632350,-1111.0,0.000239,2]
[367478291,1750812632360,-1111.0,0.000239,2]
[367478293,1750812632369,-1111.0,0.000239,2]
[367478295,1750812632378,-2000.0,0.00024,2]
[367478297,1750812632388,-151.93,0.00024,2]
[367478299,1750812632397,-2500.0,0.00024006,2]
[367478301,1750812632406,-192.06769192,0.00024006,2]
[367478303,1750812632415,-5000.0,0.00024007,2]
[367478305,1750812632424,-488.5362,0.00024008,2]
[367478307,1750812632433,-3642.655,0.00024008,2]
[367478309,1750812632442,-2241.9387,0.00024008,2]
[367478311,1750812632452,-1000.0,0.00024008,2]
[367478313,1750812632461,-500.0,0.00024059,2]
[367478315,1750812632472,-151.0,0.000241,7]
[367478317,1750812632481,-151.0,0.000241,7]
[367478319,1750812632491,-12500.0,0.000241,3]
[367478321,1750812632500,-834.75490017,0.000241,3]
[367478323,1750812632509,-211.05241362,0.00024105,2]
[367478325,1750812632519,-151.0,0.00024105,7]
[367478327,1750812632528,-430.19,0.00024105,2]
[367478329,1750812632538,-151.0,0.00024105,7]
[367478331,1750812632547,-490.0,0.00024105,2]
[367478333,1750812632557,-545.58,0.00024105,2]
[367478335,1750812632566,-209.62,0.00024105,2]
[367478337,1750812632575,-490.0,0.00024105,2]
[367478339,1750812632584,-222.43,0.00024105,2]
[367478341,1750812632594,-264.65108235,0.00024105,2]
[367478343,1750812632603,-490.0,0.00024105,2]
[367478345,1750812632612,-490.0,0.00024105,2]
[367478347,1750812632621,-490.0,0.00024105,2]
[367478349,1750812632630,-490.0,0.00024105,2]
[367478351,1750812632639,-490.0,0.00024105,2]
[367478353,1750812632648,-4036.28863264,0.00024105,2]
[367478355,1750812632658,-143092.8629892,0.00024105,2]
[367478358,1750812632678,-916.48533667,0.00024105,2]
[367478360,1750812632700,-350.0,0.00024105,2]
[367478362,1750812632711,-748.44104968,0.00024105,2]
[367478364,1750812632722,-302.0,0.00024105,2]
[367478366,1750812632733,-6474.59441001,0.00024105,2]
[367478369,1750812632744,-675.41003666,0.00024105,2]
[367478371,1750812632755,-2269.33792627,0.00024105,2]
[367478373,1750812632767,-1898.68129783,0.00024105,2]
[367478375,1750812632778,-1254.98903124,0.00024105,2]
[367478377,1750812632789,-819.33484271,0.00024105,2]
[367478380,1750812632800,-3573.60976168,0.00024105,2]
[367478382,1750812632810,-88193.29470358,0.00024105,2]
[367478384,1750812632821,-148547.52766271,0.00024105,2]
[367478386,1750812632830,-490.0,0.00024106,2]
[367478388,1750812632842,-490.0,0.00024106,2]
[367478390,1750812632851,-490.0,0.00024106,2]
[367478392,1750812632860,-490.0,0.00024106,2]
[367478394,1750812632869,-490.0,0.00024106,2]
[367478396,1750812632878,-554.9,0.00024106,2]
[367478398,1750812632889,-490.0,0.00024106,2]
[367478400,1750812632898,-490.0,0.00024106,2]
[367478402,1750812632908,-490.0,0.00024106,2]
[367478404,1750812632918,-490.0,0.00024106,2]
[367478406,1750812632927,-490.0,0.00024106,2]
[367478408,1750812632937,-490.0,0.00024106,2]
[367478410,1750812632945,-490.0,0.00024106,2]
[367478412,1750812632954,-490.0,0.00024106,2]
[367478414,1750812632963,-490.0,0.00024106,2]
[367478416,1750812632973,-481.34,0.00024106,2]
[367478418,1750812632982,-561.63,0.00024106,2]
[367478420,1750812632991,-490.0,0.00024106,2]
[367478422,1750812633000,-490.0,0.00024106,2]
[367478424,1750812633010,-490.0,0.00024106,2]
[367478426,1750812633019,-490.0,0.00024106,2]
[367478428,1750812633028,-151.0,0.00024106,7]
[367478430,1750812633037,-490.0,0.00024106,2]
[367478432,1750812633046,-490.0,0.00024106,2]
[367478434,1750812633055,-490.0,0.00024106,2]
[367478436,1750812633064,-490.0,0.00024106,2]
[367478438,1750812633073,-490.0,0.00024106,2]
[367478440,1750812633082,-490.0,0.00024106,2]
[367478442,1750812633091,-490.0,0.00024106,2]
[367478444,1750812633101,-490.0,0.00024106,2]
[367478446,1750812633110,-490.0,0.00024106,2]
[367478448,1750812633119,-541.96,0.00024106,2]
[367478450,1750812633128,-490.0,0.00024106,2]
[367478451,1750812633137,-490.0,0.00024106,2]
[367478453,1750812633146,-490.0,0.00024106,2]
[367478455,1750812633157,-151.0,0.00024106,7]
[367478458,1750812633166,-490.0,0.00024106,2]
[367478460,1750812633175,-490.0,0.00024106,2]
[367478461,1750812633185,-490.0,0.00024106,2]
[367478464,1750812633194,-140.61866397,0.00024106,2]
[367478466,1750812633206,-364.84133603,0.00024106,2]
[367478468,1750812633215,-490.0,0.00024106,2]
[367478470,1750812633225,-490.0,0.00024106,2]
[367478472,1750812633234,-145.85463379,0.00024106,2]
[367478474,1750812633245,-344.14536621,0.00024106,2]
[367478476,1750812633254,-242.75406736,0.00024106,2]
[367478478,1750812633264,-391.66593264,0.00024106,2]
[367478480,1750812633273,-490.0,0.00024106,2]
[367478482,1750812633282,-69.33406736,0.00024106,2]
[367478484,1750812633293,-420.66593264,0.00024106,2]
[367478486,1750812633303,-58.33406736,0.00024106,2]
[367478488,1750812633315,-431.66593264,0.00024106,2]
[367478490,1750812633324,-490.0,0.00024106,2]
[367478492,1750812633334,-490.0,0.00024106,2]
[367478494,1750812633344,-490.0,0.00024106,2]
[367478496,1750812633353,-490.0,0.00024106,2]
[367478498,1750812633363,-490.0,0.00024106,2]
[367478500,1750812633373,-490.0,0.00024106,2]
[367478502,1750812633382,-490.0,0.00024106,2]
[367478504,1750812633393,-215.31282127,0.00024106,2]
[367478507,1750812633410,-274.68717873,0.00024106,2]
[367478508,1750812633419,-251.96282127,0.00024106,2]
[367478618,1750812637342,-200.0,0.00022183,7]
[367478619,1750812637351,-384.046,0.00023298,2]
[367478620,1750812637361,-176.8551501,0.00024106,2]
[367478621,1750812637372,-61.18202863,0.00024106,2]
[367478622,1750812637382,-490.0,0.00024106,2]
[367478623,1750812637391,-490.0,0.00024106,2]
[367478624,1750812637400,-490.0,0.00024106,2]
[367478625,1750812637410,-490.0,0.00024106,2]
[367478626,1750812637418,-490.0,0.00024106,2]
[367478627,1750812637428,-257.52,0.00024106,2]
[367478628,1750812637437,-490.0,0.00024106,2]
[367478629,1750812637446,-490.0,0.00024106,2]
[367478630,1750812637456,-151.0,0.00024106,7]
[367478631,1750812637465,-490.0,0.00024106,2]
[367478632,1750812637474,-151.0,0.00024106,7]
[367478633,1750812637483,-490.0,0.00024106,2]
[367478634,1750812637492,-402.83729824,0.00024106,2]
[367478635,1750812637504,-87.16270176,0.00024106,2]
[367478636,1750812637513,-490.0,0.00024106,2]
[367478637,1750812637523,-94.90729824,0.00024106,2]
[367478638,1750812637534,-277.595,0.00024106,2]
[367478639,1750812637545,-117.49770176,0.00024106,2]
[367478640,1750812637554,-490.0,0.00024106,2]
[367478641,1750812637564,-490.0,0.00024106,2]
[367478642,1750812637574,-125.06229842,0.00024106,2]
[367478643,1750812637589,-364.93770158,0.00024106,2]
[367478644,1750812637598,-427.41190182,0.00024106,2]
[367478645,1750812637614,-62.58809818,0.00024106,2]
[367478646,1750812637623,-490.0,0.00024106,2]
[367478647,1750812637632,-490.0,0.00024106,2]
[367478648,1750812637641,-490.0,0.00024106,2]
[367478649,1750812637650,-490.0,0.00024106,2]
[367478650,1750812637669,-539.24,0.00024106,2]
[367478651,1750812637678,-161.95236179,0.00024106,2]
[367478652,1750812637688,-490.0,0.00024106,2]
[367478654,1750812637697,-490.0,0.00024106,2]
[367478656,1750812637707,-490.0,0.00024106,2]
[367478658,1750812637716,-490.0,0.00024106,2]
[367478660,1750812637726,-490.0,0.00024106,2]
[367478661,1750812637735,-500.0,0.00024106,2]
[367478664,1750812637745,-500.0,0.00024106,2]
[367478666,1750812637754,-490.0,0.00024106,2]
[367478667,1750812637764,-490.0,0.00024106,2]
[367478669,1750812637773,-250.0,0.00024106,2]
[367478671,1750812637782,-490.0,0.00024106,2]
[367478672,1750812637792,-490.0,0.00024106,2]
[367478673,1750812637801,-490.0,0.00024106,2]
[367478674,1750812637811,-490.0,0.00024106,2]
[367478675,1750812637820,-490.0,0.00024106,2]
[367478676,1750812637829,-1692.87,0.00024106,2]
[367478677,1750812637839,-490.0,0.00024106,2]
[367478678,1750812637852,-490.0,0.00024106,2]
[367478679,1750812637862,-490.0,0.00024106,2]
[367478680,1750812637871,-550.7,0.00024106,2]
[367478682,1750812637880,-490.0,0.00024106,2]
[367478684,1750812637890,-490.0,0.00024106,2]
[367478686,1750812637900,-530.43,0.00024106,2]
[367478688,1750812637909,-490.0,0.00024106,2]
[367478689,1750812637918,-490.0,0.00024106,2]
[367478690,1750812637929,-490.0,0.00024106,2]
[367478691,1750812637939,-490.0,0.00024106,2]
[367478692,1750812637949,-490.0,0.00024106,2]
[367478693,1750812637959,-490.0,0.00024106,2]
[367478694,1750812637968,-499.0,0.00024106,2]
[367478695,1750812637979,-500.0,0.00024106,2]
[367478696,1750812637989,-490.0,0.00024106,2]
[367478697,1750812637998,-490.0,0.00024106,2]
[367478698,1750812638007,-500.0,0.00024106,2]
[367478699,1750812638019,-490.0,0.00024106,2]
[367478700,1750812638028,-490.0,0.00024106,2]
[367478701,1750812638037,-490.0,0.00024106,2]
[367478702,1750812638047,-490.0,0.00024106,2]
[367478703,1750812638056,-490.0,0.00024106,2]
[367478704,1750812638065,-490.0,0.00024106,2]
[367478705,1750812638074,-490.0,0.00024106,2]
[367478706,1750812638084,-490.0,0.00024106,2]
[367478707,1750812638093,-490.0,0.00024106,2]
[367478708,1750812638102,-490.0,0.00024106,2]
[367478709,1750812638111,-490.0,0.00024106,2]
[367478710,1750812638120,-490.0,0.00024106,2]
[367478711,1750812638129,-490.0,0.00024106,2]
[367478712,1750812638138,-490.0,0.00024106,2]
[367478713,1750812638147,-490.0,0.00024106,2]
[367478714,1750812638157,-615.63,0.00024106,2]
[367478715,1750812638166,-490.0,0.00024106,2]
[367478716,1750812638175,-490.0,0.00024106,2]
[367478717,1750812638184,-281.38,0.00024106,2]
[367478718,1750812638193,-490.0,0.00024106,2]
[367478719,1750812638202,-608.43,0.00024106,2]
[367478720,1750812638211,-490.0,0.00024106,2]
[367478721,1750812638221,-564.18,0.00024106,2]
[367478722,1750812638230,-339.52,0.00024106,2]
[367478723,1750812638240,-491.79,0.00024106,2]
[367478724,1750812638249,-490.0,0.00024106,2]
[367478725,1750812638258,-232.44,0.00024106,2]
[367478726,1750812638267,-490.0,0.00024106,2]
[367478727,1750812638276,-627.08,0.00024106,2]
[367478728,1750812638286,-490.0,0.00024106,2]
[367478729,1750812638297,-490.0,0.00024106,2]
[367478730,1750812638306,-490.0,0.00024106,2]
[367478731,1750812638316,-500.0,0.00024106,2]
[367478732,1750812638326,-500.0,0.00024106,2]
[367478733,1750812638336,-500.0,0.00024106,2]
[367478734,1750812638346,-490.0,0.00024106,2]
[367478735,1750812638355,-490.0,0.00024106,2]
[367478736,1750812638366,-490.0,0.00024106,2]
[367478737,1750812638375,-572.27,0.00024106,2]
[367478738,1750812638386,-490.0,0.00024106,2]
[367478739,1750812638395,-490.0,0.00024106,2]
[367478740,1750812638405,-490.0,0.00024106,2]
[367478741,1750812638415,-599.98,0.00024106,2]
[367478742,1750812638425,-210.0,0.00024106,2]
[367478743,1750812638435,-490.0,0.00024106,2]
[367478744,1750812638445,-490.0,0.00024106,2]
[367478745,1750812638455,-490.0,0.00024106,2]
[367478746,1750812638464,-490.0,0.00024106,2]
[367478747,1750812638476,-490.0,0.00024106,2]
[367478748,1750812638485,-490.0,0.00024106,2]
[367478749,1750812638501,-380.28934505,0.00024106,2]
[367478750,1750812638518,-109.71065495,0.00024106,2]
[367478751,1750812638529,-490.0,0.00024106,2]
[367478752,1750812638541,-490.0,0.00024106,2]
[367478753,1750812638553,-490.0,0.00024106,2]
[367478754,1750812638567,-489.999999,0.00024106,2]
[367478755,1750812638578,-490.0,0.00024106,2]
[367478756,1750812638589,-490.0,0.00024106,2]
[367478757,1750812638600,-490.0,0.00024106,2]
[367478758,1750812638611,-490.0,0.00024106,2]
[367478759,1750812638621,-490.0,0.00024106,2]
[367478760,1750812638632,-490.0,0.00024106,2]
[367478761,1750812638641,-490.0,0.00024106,2]
[367478762,1750812638651,-490.0,0.00024106,2]
[367478763,1750812638661,-490.0,0.00024106,2]
[367478764,1750812638671,-500.0,0.00024106,2]
[367478765,1750812638681,-500.0,0.00024106,2]
[367478766,1750812638692,-490.0,0.00024106,2]
[367478767,1750812638703,-490.0,0.00024106,2]
[367478768,1750812638714,-490.0,0.00024106,2]
[367478769,1750812638729,-490.0,0.00024106,2]
[367478770,1750812638740,-490.0,0.00024106,2]
[367478771,1750812638750,-490.0,0.00024106,2]